bitfinex/quotes_ETHUSD_20250106
["timestamp","ask_amount","ask_price","bid_price","bid_amount"]
[1736175439239,2.70914,3691.3,3691.2,0.25]
[1736175439564,2.70893,3691.5,3691.3,0.25]
[1736175439755,2.70899,3691.4,3691.2,0.25]
[1736175440065,2.70899,3691.4,3691.3,0.25]
[1736175440433,2.70899,3691.4,3691.2,0.25]
[1736175440643,2.70899,3691.4,3691.3,0.25]
[1736175440938,2.70899,3691.4,3691.2,0.25]
[1736175440939,2.70872,3691.8,3691.6,0.25]
[1736175441123,2.7083,3692.4,3692.2,0.25]
[1736175441328,0.005,3692.5,3692.2,0.25]
[1736175441556,0.005,3692.5,3692.4,0.5]
[1736175441753,0.005,3692.5,3692.4,0.5270802]
[1736175442373,0.005,3692.5,3692.4,0.65787802]
[1736175442670,2.8486624,3693.7,3692.8,0.25]
[1736175442834,4.79421394,3694.2,3692.8,0.25]
[1736175443034,2.70767,3693.2,3693.0,0.25]
[1736175443336,2.70765,3693.3,3692.7,0.25]
[1736175443545,2.70804,3692.7,3692.6,0.5]
[1736175443870,2.70738,3693.6,3692.6,0.25]
[1736175444164,2.70826,3692.4,3692.3,1.09633284]
[1736175444368,2.70848,3692.1,3692.0,1.09355145]
[1736175444565,2.70848,3692.1,3692.0,1.45e-06]
[1736175445154,2.70899,3691.4,3691.3,0.25]
[1736175445355,3.73587339,3691.7,3691.0,0.25]
[1736175445668,2.70929,3691.0,3690.9,0.90546243]
[1736175445971,2.70951,3690.7,3690.6,0.25]
[1736175446544,2.70911,3691.3,3690.8,0.25]
[1736175446867,2.70911,3691.3,3691.2,0.25]
[1736175447344,2.70841,3692.2,3691.6,0.25]
[1736175447534,2.70851,3692.1,3691.6,0.25]
[1736175447731,3.7696,3692.7,3692.0,0.5]
[1736175447945,2.70826,3692.4,3692.0,0.5]
[1736175448168,2.70804,3692.7,3692.2,0.25]
[1736175448486,2.70789,3692.9,3692.8,0.25]
[1736175448689,0.270789,3692.9,3692.4,0.5]
[1736175448893,2.70693,3694.3,3693.5,0.25]
[1736175449108,2.25423981,3695.0,3694.6,0.25]
[1736175449389,2.25423981,3695.0,3694.9,0.5]
[1736175449570,2.25423981,3695.0,3694.1,0.94826748]
[1736175449776,2.25423981,3695.0,3694.2,0.02706466]
[1736175450234,2.25423981,3695.0,3694.1,1.16026748]
[1736175450429,2.70571,3695.9,3694.2,0.02706205]
[1736175450628,1.0413,3697.2,3694.3,0.0225]
[1736175450870,0.06266923,3697.1,3694.9,0.0075]
[1736175451033,0.06266923,3697.1,3694.4,1.192328]
[1736175451259,2.70521,3696.6,3694.6,2.70661]
[1736175451460,0.03381718,3696.5,3694.5,0.41366859]
[1736175451805,2.73884918,3696.9,3694.7,0.77865941]
[1736175451954,2.70515,3696.7,3694.8,0.04955535]
[1736175452290,0.28800147,3696.8,3694.9,2.70643]
[1736175452291,0.02552478,3696.8,3694.9,2.70643]
[1736175452453,0.02552478,3696.8,3695.3,2.70613]
[1736175452790,0.02552478,3696.8,3695.8,1.0105]
[1736175452994,2.70405,3698.2,3696.1,1.0105]
[1736175453291,2.70366,3698.7,3696.5,1.0105]
[1736175453292,2.704,3698.3,3696.5,1.0105]
[1736175453495,0.03365314,3698.2,3696.5,1.0105]
[1736175453649,2.70384,3698.5,3696.7,0.9786]
[1736175453854,0.03365314,3698.4,3696.7,0.9786]
[1736175454090,2.70374,3698.6,3696.8,0.02704083]
[1736175454391,5.32377328,3699.5,3697.0,0.0225]
[1736175454392,2.70353,3698.9,3697.0,0.0225]
[1736175454595,0.03941025,3698.5,3697.2,0.015]
[1736175454887,2.7035,3698.9,3697.1,0.9977]
[1736175455101,0.03365314,3698.9,3697.1,0.9977]
[1736175455275,0.14110243,3698.8,3697.1,0.9977]
[1736175455479,2.70423,3698.0,3697.1,0.9977]
[1736175455687,0.03365314,3697.9,3697.1,0.9977]
[1736175456003,0.9977,3698.7,3697.2,1.07104685]
[1736175456224,0.03365314,3700.3,3697.5,2.25]
[1736175456389,4.28507328,3700.8,3697.5,2.25]
[1736175456390,2.70295,3699.7,3697.6,1.2004]
[1736175456700,0.270295,3699.7,3697.8,0.9884]
[1736175456900,0.270295,3699.7,3697.9,0.9884]
[1736175457399,2.973235,3699.7,3697.9,0.9884]
[1736175457610,0.03365314,3699.6,3698.1,0.9765]
[1736175457911,0.03365314,3700.3,3698.2,1.00352963]
[1736175458115,2.7026,3700.2,3698.4,0.9765]
[1736175458314,0.03365314,3700.1,3698.3,0.39196696]
[1736175458512,2.70252,3700.3,3698.6,0.9854]
[1736175458826,0.1885111,3701.9,3698.9,1.0079]
[1736175458973,0.1885111,3701.9,3699.6,0.9854]
[1736175459173,0.1885111,3701.9,3699.8,2.70281]
[1736175459372,0.1885111,3701.9,3700.0,0.9911]
[1736175459573,0.1885111,3701.9,3699.9,3.37274411]
[1736175459574,0.1885111,3701.9,3700.3,0.9911]
[1736175459899,2.69994,3703.8,3701.0,1.0252]
[1736175459900,0.03365314,3703.1,3701.0,1.0252]
[1736175460215,2.70002,3703.7,3701.1,0.203]
[1736175460418,0.30702045,3703.6,3701.3,1.0252]
[1736175460717,2.69978,3704.0,3701.9,1.0252]
[1736175460914,2.69971,3704.1,3702.1,0.015]
[1736175461244,2.69971,3704.1,3702.6,1.0211]
[1736175461245,0.0682247,3704.1,3702.6,1.0211]
[1736175461386,0.0682247,3704.1,3702.8,0.9775]
[1736175462384,0.27678947,3704.0,3701.3,1.0136]
[1736175462598,3.0,3703.7,3701.3,1.0136]
[1736175462931,2.70069,3702.8,3701.3,1.0136]
[1736175463129,0.52731205,3702.8,3701.3,1.0136]
[1736175463638,2.70126,3702.0,3701.3,1.0136]
[1736175463809,2.70162,3701.5,3701.3,1.0136]
[1736175464007,0.03365314,3701.4,3700.8,0.203]
[1736175464217,2.7017,3701.4,3700.5,0.967]
[1736175464721,4.28507328,3702.8,3700.5,0.967]
[1736175464901,0.53785829,3701.7,3700.5,0.967]
[1736175465101,0.03365314,3701.6,3700.5,0.967]
[1736175465332,3.0,3702.6,3700.5,0.967]
[1736175465633,2.7018,3701.3,3700.5,0.967]
[1736175465940,2.70185,3701.2,3700.5,0.967]
[1736175466098,0.5615268,3701.4,3700.5,0.967]
[1736175466298,0.25,3703.6,3700.5,0.967]
[1736175466299,0.03365314,3702.2,3700.5,0.967]
[1736175466519,3.25324368,3701.8,3700.6,0.02701916]
[1736175466731,0.03365314,3702.0,3700.6,0.02701916]
[1736175466917,0.54376825,3702.1,3700.5,0.967]
[1736175467120,0.03365314,3702.0,3700.5,0.967]
[1736175467325,2.70138,3701.8,3700.5,0.967]
[1736175467523,0.36151428,3701.9,3700.6,0.0270177]
[1736175467725,2.70155,3701.6,3700.6,0.0270177]
[1736175467897,0.03365314,3701.9,3700.6,0.0270177]
[1736175468102,0.03365314,3701.9,3700.5,0.967]
[1736175468439,2.70189,3701.1,3698.4,0.982]
[1736175468675,2.70219,3700.7,3698.4,0.982]
[1736175468960,4.28507328,3699.8,3698.4,0.982]
[1736175469134,0.03365314,3699.7,3698.4,0.982]
[1736175469301,2.70343,3699.0,3698.4,0.982]
[1736175469503,0.03365314,3699.5,3698.5,0.02703489]
[1736175469741,0.03365314,3700.2,3698.4,0.982]
[1736175469948,0.52954962,3699.9,3698.5,0.02702948]
[1736175470180,0.03365314,3700.1,3698.4,0.977]
[1736175470382,2.70307,3699.5,3698.4,0.977]
[1736175470671,2.70332,3699.2,3698.4,0.977]
[1736175470831,0.03365314,3699.1,3698.4,0.977]
[1736175471033,0.03365314,3699.5,3698.5,0.02703618]
[1736175471269,2.73647314,3699.9,3698.4,0.977]
[1736175471472,3.0,3699.6,3697.6,0.28234457]
[1736175471670,2.70406,3698.2,3696.4,0.42318903]
[1736175471830,0.03365314,3698.1,3696.6,0.28240627]
[1736175472046,0.03365314,3699.7,3697.0,2.70487]
[1736175472267,2.70329,3699.2,3697.1,0.270487]
[1736175472577,0.03365314,3699.1,3696.8,2.705]
[1736175472781,0.03365314,3699.1,3696.7,0.215]
[1736175472933,0.03365314,3699.1,3696.8,0.215]
[1736175473275,0.5467425,3699.2,3697.0,1.0097]
[1736175473575,0.5467425,3699.2,3697.1,0.215]
[1736175473729,4.28507328,3699.7,3697.3,1.0113]
[1736175473929,2.70328,3699.2,3697.3,1.0113]
[1736175474135,2.70385,3698.5,3697.3,1.0113]
[1736175474433,0.03365314,3699.2,3697.3,1.0113]
[1736175474633,0.5431181,3699.3,3697.4,0.215]
[1736175474963,0.5431181,3699.3,3697.3,1.0113]
[1736175474964,2.70403,3698.2,3697.3,1.0113]
[1736175475281,2.70416,3698.0,3697.3,1.0113]
[1736175475588,2.70469,3697.3,3696.1,1.5166]
[1736175475800,0.03365314,3697.2,3696.1,1.5166]
[1736175476009,2.70536,3696.4,3696.1,1.5166]
[1736175476323,2.70476,3697.2,3696.1,1.5166]
[1736175476592,0.03365314,3697.1,3696.1,1.5166]
[1736175476772,2.70474,3697.3,3696.1,1.5166]
[1736175476935,0.03365314,3697.2,3696.1,1.5166]
[1736175477131,2.70527,3696.5,3696.1,1.66826]
[1736175477336,4.31872642,3697.1,3695.3,1.631]
[1736175477536,2.70565,3696.0,3695.3,1.631]
[1736175477772,2.70599,3695.5,3694.6,1.631]
[1736175477935,2.70623,3695.2,3694.3,0.08458882]
[1736175478133,2.70679,3694.4,3694.3,0.08458882]
[1736175478562,2.70701,3694.1,3694.0,0.2825805]
[1736175478779,2.70738,3693.6,3693.5,0.08458882]
[1736175478979,2.70775,3693.1,3693.0,9.3e-07]
[1736175479188,2.70782,3693.0,3691.2,1.5566]
[1736175479483,2.70846,3692.2,3691.2,1.5566]
[1736175479686,2.70832,3692.4,3691.3,0.18274739]
[1736175479836,3.23826256,3693.0,3691.3,0.18274739]
[1736175480042,0.53042256,3693.0,3691.3,0.15566]
[1736175480249,0.53042256,3693.0,3691.4,0.02708526]
[1736175480438,2.70809,3692.7,3691.4,0.02708526]
[1736175480640,2.708,3692.8,3691.4,0.17393453]
[1736175480841,2.70799,3692.8,3691.4,0.17393453]
[1736175481064,0.53042256,3693.0,3691.4,0.17393453]
[1736175481283,4.28507328,3694.1,3691.5,0.0075]
[1736175481507,4.28507328,3694.6,3691.6,1.8768]
[1736175481766,2.70662,3694.7,3692.4,2.70823]
[1736175482006,2.70638,3695.0,3692.7,0.015]
[1736175482303,4.28507328,3696.1,3692.9,1.6404]
[1736175482507,2.70649,3694.9,3692.9,1.6404]
[1736175482669,0.5485562,3695.3,3693.2,1.5876]
[1736175483024,0.14128893,3696.0,3694.0,0.015]
[1736175483025,2.70566,3696.0,3694.0,0.015]
[1736175483236,2.70567,3696.0,3694.1,1.5876]
[1736175483534,0.5415734,3696.1,3694.1,1.5876]
[1736175483828,2.70586,3695.7,3694.1,1.5876]
[1736175483989,4.82664668,3696.1,3694.1,1.5876]
[1736175484166,4.82664668,3696.1,3694.2,0.15876]
[1736175484367,2.7062,3695.3,3694.2,0.15876]
[1736175484602,1.5493,3695.9,3694.2,0.15876]
[1736175485193,0.54270093,3695.4,3694.2,0.15876]
[1736175485508,0.54270093,3695.4,3694.3,0.02706579]
[1736175485706,2.70692,3694.3,3692.9,0.215]
[1736175485864,3.57364102,3695.4,3692.9,0.215]
[1736175486069,3.57364102,3695.4,3693.0,0.02707158]
[1736175486070,2.70675,3694.5,3693.0,0.02707158]
[1736175486269,0.54270093,3695.4,3693.1,0.0075]
[1736175486529,2.70622,3695.2,3693.3,0.015]
[1736175486687,0.54270093,3695.4,3693.8,0.0075]
[1736175487041,4.28507328,3694.3,3691.8,0.25]
[1736175487309,1.6385,3695.3,3691.9,1.65447489]
[1736175487310,0.5419969,3693.9,3691.9,1.65447489]
[1736175487479,2.70684,3694.4,3692.0,4.33594]
[1736175487682,2.7066,3694.7,3692.3,0.55]
[1736175487880,0.43858777,3695.8,3693.1,0.0075]
[1736175487881,3.23905369,3694.9,3693.1,0.0075]
[1736175488116,2.70655,3694.8,3693.2,0.650029]
[1736175488278,7.28507328,3695.8,3693.2,0.215]
[1736175488622,0.54557122,3695.1,3693.2,0.215]
[1736175488768,2.70698,3694.2,3693.0,1.6274]
[1736175489001,2.70635,3695.0,3693.1,0.215]
[1736175489196,4.29255,3694.6,3693.0,1.6274]
[1736175489449,2.70768,3693.2,3693.0,1.6274]
[1736175489652,3.25673,3694.5,3692.3,0.215]
[1736175489653,2.70784,3693.0,3692.4,1.69097715]
[1736175489815,4.28507328,3694.3,3692.4,1.69097715]
[1736175490017,3.0,3694.7,3692.4,1.69097574]
[1736175490206,4.28507328,3694.8,3692.4,1.69097574]
[1736175490207,0.55461533,3694.1,3692.5,0.0075]
[1736175490401,2.70695,3694.2,3692.6,0.21841854]
[1736175490708,2.70701,3694.1,3692.7,1.5673]
[1736175490908,0.53641215,3694.5,3692.8,0.02707055]
[1736175491112,1.5934,3695.2,3692.7,1.5673]
[1736175491422,2.7069,3694.3,3692.7,1.5673]
[1736175491631,0.53798298,3694.6,3693.2,1.5673]
[1736175491808,0.53798298,3694.6,3693.3,0.24206484]
[1736175492004,2.70712,3694.0,3693.2,1.7823]
[1736175492208,0.53798298,3694.6,3693.2,1.5673]
[1736175492445,5.41344,3694.5,3693.2,1.5673]
[1736175492703,2.70747,3693.5,3693.2,1.5673]
[1736175492910,2.70757,3693.4,3692.8,0.17586476]
[1736175493104,0.55,3694.5,3692.8,0.17586476]
[1736175493407,4.28507328,3693.8,3691.8,1.59437883]
[1736175493640,1.5934,3694.7,3691.8,1.59437883]
[1736175493869,1.5934,3694.7,3691.9,1.5673]
[1736175494146,0.54014965,3693.4,3691.9,1.5673]
[1736175494349,2.7082,3692.5,3691.9,1.5673]
[1736175494644,2.70782,3693.1,3692.0,0.17723735]
[1736175494843,0.54014965,3693.4,3692.0,0.17723735]
[1736175495003,2.70726,3693.8,3692.0,0.17723735]
[1736175495203,0.54924964,3693.9,3692.1,0.02707806]
[1736175495448,2.70713,3694.0,3692.2,1.5673]
[1736175495758,2.70673,3694.5,3692.9,1.5673]
[1736175495903,0.55,3695.0,3692.9,1.5673]
[1736175496246,4.81448457,3694.7,3692.9,1.5673]
[1736175496457,2.70746,3693.5,3692.9,1.5673]
[1736175496619,3.0,3694.6,3692.9,1.5673]
[1736175496933,2.70644,3694.9,3693.0,0.18380691]
[1736175497135,6.98410575,3695.2,3693.0,0.18380691]
[1736175497136,3.25247298,3694.6,3693.0,0.18380691]
[1736175497443,2.70709,3694.0,3693.1,0.215]
[1736175497748,2.70672,3694.5,3693.0,0.15673]
[1736175497749,2.70726,3693.8,3693.0,0.15673]
[1736175497951,2.70733,3693.7,3693.0,0.15673]
[1736175498170,0.54578298,3694.6,3693.1,0.193903]
[1736175498304,0.54578298,3694.6,3693.1,0.22097712]
[1736175498506,2.70688,3694.3,3693.1,0.22097711]
[1736175498711,2.7068,3694.4,3693.1,0.22097711]
[1736175498973,0.54578298,3694.6,3693.1,0.193903]
[1736175499557,0.87101728,3694.6,3693.1,0.193903]
[1736175499761,4.27785575,3694.2,3692.0,0.215]
[1736175500057,2.70756,3693.4,3692.0,0.215]
[1736175500300,0.5376309,3693.9,3691.8,1.67605952]
[1736175500474,2.70825,3692.5,3691.8,1.5914]
[1736175500766,2.70786,3693.0,3691.8,1.86662408]
[1736175501069,0.55,3693.6,3691.8,1.83954]
[1736175501408,2.70836,3692.3,3691.8,1.83954]
[1736175501611,2.70805,3692.7,3691.8,1.83954]
[1736175501864,4.27785575,3692.7,3691.6,0.89]
[1736175502071,2.70877,3691.7,3691.6,0.89]
[1736175502369,3.26080212,3692.3,3691.6,0.89]
[1736175502512,2.70877,3691.7,3691.6,0.89]
[1736175505105,3.25877,3691.7,3690.7,1.6448]
[1736175505311,2.70892,3691.5,3690.3,0.1532645]
[1736175505556,2.70918,3691.2,3690.3,0.1532645]
[1736175505754,0.54884622,3691.7,3690.4,0.02709639]
[1736175505938,2.70892,3691.5,3690.3,0.1532645]
[1736175506114,2.7093,3691.0,3690.3,0.1532645]
[1736175506622,0.54884622,3691.7,3690.4,0.02709639]
[1736175506953,2.70901,3691.4,3690.4,0.02709639]
[1736175507117,0.54884622,3691.7,3690.3,0.1532645]
[1736175507318,2.70885,3691.6,3690.3,0.1532645]
[1736175507611,0.54884622,3691.7,3690.3,0.1532645]
[1736175508015,0.54884622,3691.7,3690.4,1.6566]
[1736175508217,0.54884622,3691.7,3690.5,0.02709149]
[1736175508947,3.25763622,3691.7,3690.6,0.08467538]
[1736175509127,3.25763622,3691.7,3690.7,0.02709113]
[1736175509332,0.54884622,3691.7,3690.7,0.02709113]
[1736175509619,0.54884622,3691.7,3690.5,0.08467538]
[1736175509812,3.25762622,3691.7,3690.6,0.18945399]
[1736175510013,0.54884622,3691.7,3690.7,0.02709114]
[1736175510463,0.54884622,3691.7,3690.6,0.18945399]
[1736175511056,1.6236,3693.3,3690.8,1.5593]
[1736175511270,0.53681451,3692.5,3691.0,1.5205]
[1736175511571,2.70731,3693.7,3691.4,1.5205]
[1736175511733,2.70842,3692.2,3691.4,1.5205]
[1736175512176,2.70816,3692.6,3691.4,1.5205]
[1736175512467,2.70863,3691.9,3691.4,1.5205]
[1736175513174,1.545,3692.9,3691.4,1.5205]
[1736175513175,2.70809,3692.7,3691.4,1.5205]
[1736175513385,0.53332465,3692.1,3691.4,1.5205]
[1736175513663,3.24187465,3692.1,3691.4,1.5205]
[1736175513875,0.53332465,3692.1,3691.4,1.5205]
[1736175514036,0.53332465,3692.1,3691.4,1.69073467]
[1736175514232,2.70856,3692.0,3691.4,1.69073467]
[1736175514446,2.70856,3692.0,3691.4,1.5205]
[1736175514638,2.70797,3692.8,3691.4,1.5205]
[1736175514840,2.70825,3692.5,3691.4,1.5205]
[1736175515069,2.70825,3692.5,3691.5,0.23672538]
[1736175515427,0.54823258,3692.4,3691.6,0.02708746]
[1736175515631,0.54823258,3692.4,3691.6,0.08467538]
[1736175515831,0.54823258,3692.4,3691.6,0.11176202]
[1736175516199,4.2807435,3694.1,3691.7,1.5666]
[1736175516497,0.54790732,3692.9,3691.8,0.20165494]
[1736175516786,0.54790732,3692.9,3692.0,2.70854]
[1736175516987,0.54790732,3692.9,3692.1,0.02707925]
[1736175517134,2.7073,3693.8,3692.3,1.575]
[1736175517493,2.7073,3693.8,3692.4,0.43104593]
[1736175517647,2.7073,3693.8,3692.4,0.51571099]
[1736175517846,2.70731,3693.7,3692.4,0.51571099]
[1736175518185,0.55126838,3693.1,3692.4,0.08466506]
[1736175518387,2.70804,3692.8,3692.3,1.65966506]
[1736175518533,2.70783,3693.0,3692.3,1.65966506]
[1736175518732,0.55126838,3693.1,3692.3,1.575]
[1736175519649,2.70782,3693.0,3692.3,1.575]
[1736175519849,2.708,3692.8,3692.3,1.575]
[1736175520136,2.7082,3692.5,3691.8,1.5962]
[1736175520504,0.32592684,3692.8,3691.8,1.5962]
[1736175520633,2.08476838,3693.1,3691.8,1.5962]
[1736175520634,2.70811,3692.6,3691.8,1.5962]
[1736175520833,2.08476838,3693.1,3691.8,1.5962]
[1736175521074,2.70797,3692.8,3691.8,1.5962]
[1736175521273,2.08476838,3693.1,3691.5,0.08466506]
[1736175521274,3.55,3693.0,3691.5,0.08466506]
[1736175521471,1.5335,3693.1,3691.5,0.08466506]
[1736175521796,2.7087,3691.8,3691.0,0.08466506]
[1736175522181,2.7087,3691.8,3691.1,0.08466506]
[1736175522685,2.70847,3692.2,3691.1,0.08466506]
[1736175522686,2.70877,3691.7,3691.1,0.08466506]
[1736175522980,2.70847,3692.2,3691.2,0.08466506]
[1736175523140,2.70863,3691.9,3691.2,0.08466506]
[1736175523552,2.70863,3691.9,3691.0,0.08466506]
[1736175523750,0.55194426,3691.3,3691.0,0.27037847]
[1736175524075,0.55194426,3691.3,3691.1,0.08466506]
[1736175524674,2.7084,3692.3,3691.2,0.08466506]
[1736175524852,0.54175619,3691.5,3691.2,0.08466506]
[1736175525251,0.54175619,3691.5,3691.0,0.08466506]
[1736175526164,2.70899,3691.4,3691.0,0.08466506]
[1736175526479,0.54175619,3691.5,3690.9,0.176269]
[1736175526938,0.54175619,3691.5,3691.0,0.08466506]
[1736175527295,2.70904,3691.4,3690.9,0.176269]
[1736175527596,0.54175619,3691.5,3690.9,0.176269]
[1736175527806,2.7092,3691.2,3690.9,0.176269]
[1736175528142,2.70901,3691.4,3690.9,0.176269]
[1736175528435,0.54175619,3691.5,3690.9,0.176269]
[1736175528952,2.70911,3691.3,3690.9,0.176269]
[1736175529236,0.54175619,3691.5,3690.9,0.176269]
[1736175529599,2.70929,3691.0,3690.9,0.176269]
[1736175529801,0.54175619,3691.5,3690.9,0.176269]
[1736175529802,2.70916,3691.2,3690.9,0.176269]
[1736175530036,2.70902,3691.4,3690.9,0.176269]
[1736175530407,0.54175619,3691.5,3690.9,0.176269]
[1736175531147,2.70917,3691.2,3690.9,0.176269]
[1736175531439,0.54175619,3691.5,3690.9,0.176269]
[1736175531643,2.70921,3691.2,3690.9,0.176269]
[1736175531854,3.25072619,3691.5,3690.9,0.176269]
[1736175532044,2.70602963,3691.1,3690.9,0.176269]
[1736175532246,2.70929,3691.0,3690.9,0.176269]
[1736175535116,3.25929,3691.0,3690.9,0.176269]
[1736175535467,2.70899,3691.4,3689.4,2.71044]
[1736175535675,0.54175619,3691.5,3688.8,1.06940611]
[1736175535676,1.5835,3690.9,3688.8,1.06940611]
[1736175535810,2.70967,3690.5,3689.0,2.71074]
[1736175536010,0.02710044,3690.4,3689.1,2.73777225]
[1736175536215,0.02710044,3690.4,3688.9,2.71083]
[1736175536440,0.02710044,3690.8,3689.0,2.73784227]
[1736175536614,0.55168598,3690.2,3688.8,2.71089]
[1736175536816,0.55168598,3690.2,3688.4,0.212]
[1736175536817,0.02710044,3690.1,3688.9,2.71082]
[1736175537117,2.71002,3690.0,3688.4,2.92318]
[1736175537326,0.02710044,3689.9,3688.5,2.71112]
[1736175537558,0.02710044,3689.9,3688.2,1.06940611]
[1736175537559,3.06608108,3689.9,3688.2,1.06940611]
[1736175537871,3.06608108,3689.9,3688.3,0.02710722]
[1736175538221,3.61608108,3689.9,3688.3,0.02710859]
[1736175538420,3.61608108,3689.9,3689.8,0.03722903]
[1736175539032,2.71102,3688.7,3688.0,0.33333333]
[1736175539389,2.71142,3688.1,3688.0,0.06429607]
[1736175539523,2.73852044,3688.1,3688.0,0.06429607]
[1736175539720,0.02710044,3688.1,3688.0,0.06429607]
[1736175540028,2.71142,3688.1,3688.0,0.06429607]
[1736175540222,2.71142,3688.1,3688.0,35.06429607]
[1736175540426,0.02710044,3688.4,3688.0,35.06429607]
[1736175540659,0.5320565,3688.1,3688.0,35.06429607]
[1736175541026,0.015,3688.9,3687.2,0.1785399]
[1736175541224,2.7118,3687.6,3687.2,0.1785399]
[1736175541438,3.35941348,3688.8,3687.2,0.1785399]
[1736175541439,0.02710044,3687.5,3687.2,0.1785399]
[1736175541637,0.02710044,3688.0,3687.3,1.5916]
[1736175541834,0.54629418,3688.1,3687.3,1.5916]
[1736175541835,0.02710044,3687.9,3687.3,1.5916]
[1736175542083,2.73867044,3687.9,3687.8,35.0]
[1736175542371,2.71157,3687.9,3687.8,35.0]
[1736175542600,3.04006646,3687.9,3687.8,35.0]
[1736175542812,4.7254669,3687.9,3687.8,35.0]
[1736175543010,4.39697044,3687.9,3687.8,35.0]
[1736175543167,4.94697044,3687.9,3687.8,35.0]
[1736175543571,4.39697044,3687.9,3687.8,35.0]
[1736175544315,4.94697044,3687.9,3687.8,35.0]
[1736175544502,4.39697044,3687.9,3687.8,35.0]
[1736175545698,2.71201,3687.3,3687.2,0.1785399]
[1736175546098,2.73911044,3687.3,3687.2,0.1785399]
[1736175546644,2.71201,3687.3,3687.2,35.1785399]
[1736175546801,2.73911044,3687.3,3687.2,35.1785399]
[1736175548799,2.71215,3687.1,3687.0,10.0]
[1736175549143,4.28235044,3687.1,3687.0,10.0]
[1736175549491,0.015,3686.5,3684.3,1.57]
[1736175549606,4.1522775,3686.0,3684.3,1.59713945]
[1736175549802,0.02710044,3685.9,3684.3,1.57]
[1736175550166,2.71325,3685.7,3684.4,0.157]
[1736175550380,0.02710044,3685.9,3684.3,1.57]
[1736175550381,0.02710044,3685.6,3684.3,1.57]
[1736175550841,0.02710044,3685.6,3685.5,35.0]
[1736175551005,1.505,3686.6,3685.5,35.0]
[1736175551209,2.71268,3686.4,3685.4,1.5069]
[1736175551411,0.02710044,3686.6,3685.5,0.02713288]
[1736175551642,2.71275,3686.3,3685.4,1.5069]
[1736175551909,0.02710044,3686.2,3684.4,1.5435]
[1736175552261,0.0075,3685.8,3684.5,35.0]
[1736175552423,2.71362,3685.2,3684.5,35.0]
[1736175552603,0.02710044,3685.1,3684.4,1.5435]
[1736175552801,0.02710044,3685.8,3684.5,0.15435]
[1736175553007,4.1522775,3685.4,3684.4,1.5435]
[1736175553305,0.02710044,3685.3,3684.6,35.0]
[1736175553507,2.71355,3685.2,3684.6,35.0]
[1736175553711,0.02710044,3685.1,3684.4,1.5435]
[1736175553905,0.02710044,3685.2,3684.4,1.5435]
[1736175554161,2.71341,3685.4,3684.4,1.69785]
[1736175554458,2.71341,3685.4,3685.3,35.0]
[1736175554459,2.7134,3685.4,3685.3,35.0]
[1736175554811,4.2771,3685.4,3685.3,35.0]
[1736175555141,4.2696,3685.4,3685.3,35.0]
[1736175555343,4.2771,3685.4,3685.3,35.0]
[1736175555661,4.2696,3685.4,3685.3,35.0]
[1736175556428,4.8271,3685.4,3685.3,35.0]
[1736175556853,2.71416,3684.4,3683.8,1.531]
[1736175557119,2.71416,3684.4,3683.6,0.1785399]
[1736175557120,0.02710044,3684.3,3683.6,0.1785399]
[1736175557605,2.71438,3684.1,3683.6,0.1785399]
[1736175557836,0.02710044,3684.0,3683.6,0.1785399]
[1736175557972,2.71451,3683.9,3683.6,0.1785399]
[1736175558172,0.02710044,3683.8,3683.6,0.1785399]
[1736175558380,0.02710044,3684.4,3683.6,0.1785399]
[1736175558576,2.71422,3684.3,3683.6,0.1785399]
[1736175558786,0.02710044,3684.2,3683.6,0.1785399]
[1736175558987,0.30123248,3684.2,3683.6,0.1785399]
[1736175559219,0.30123248,3684.2,3684.1,35.0]
[1736175559404,3.01552248,3684.2,3684.1,35.0]
[1736175559720,2.51552248,3684.2,3684.1,35.0]
[1736175560028,2.53052248,3684.2,3684.1,35.0]
[1736175560205,5.7166775,3684.3,3683.6,0.1785399]
[1736175560382,2.71446,3684.0,3683.6,0.1785399]
[1736175560919,2.71453,3683.9,3683.6,0.1785399]
[1736175561101,2.71438,3684.1,3683.8,35.0]
[1736175561427,2.71451,3683.9,3683.8,35.0]
[1736175561575,5.7166775,3684.3,3683.8,35.0]
[1736175561774,2.71451,3683.9,3683.8,35.0]
[1736175561971,2.71451,3683.9,3683.6,0.1785399]
[1736175562214,4.1522775,3684.3,3683.6,0.1785399]
[1736175562422,6.8664875,3684.3,3684.2,35.0]
[1736175563206,6.8739875,3684.3,3684.2,35.0]
[1736175563723,6.8814875,3684.3,3684.2,33.64285]
[1736175563894,2.71466,3683.7,3683.6,0.1785399]
[1736175565030,2.72216,3683.7,3683.6,35.1785399]
[1736175565319,2.71451,3683.9,3683.6,35.1785399]
[1736175565479,2.71438,3684.1,3683.6,0.1785399]
[1736175565917,2.71438,3684.1,3684.0,35.0]
[1736175566118,4.1522775,3684.8,3684.0,35.0]
[1736175566319,2.71397,3684.7,3683.6,0.1785399]
[1736175566533,2.71432,3684.2,3683.6,0.1785399]
[1736175566732,2.7142,3684.4,3683.6,0.1785399]
[1736175566882,2.71414,3684.4,3684.3,35.0]
[1736175568400,2.72164,3684.4,3684.3,35.0]
[1736175569299,5.72164,3684.4,3684.3,35.0]
[1736175569696,6.27914,3684.4,3684.3,35.0]
[1736175569943,5.72164,3684.4,3684.3,35.0]
[1736175570156,5.72216,3683.7,3683.6,0.1785399]
[1736175570302,10.4394375,3683.7,3683.6,9.9e-06]
[1736175570505,10.85359958,3683.7,3683.6,9.9e-06]
[1736175570802,0.015,3683.1,3682.2,13.76]
[1736175571007,2.71548,3682.6,3682.2,11.76]
[1736175571317,0.565,3683.1,3682.2,11.76]
[1736175571629,2.71568,3682.4,3682.3,35.0]
[1736175572072,2.72318,3682.4,3682.3,35.0]
[1736175572211,2.73068,3682.4,3682.3,35.0]